bitfinex-derivatives/quotes_ETHF0:USTF0_20250322
["timestamp","ask_amount","ask_price","bid_price","bid_amount"]
[1742659093455,1.01380591,1988.2,1988.1,1.00626]
[1742659093658,1.01380591,1988.2,1988.1,2.30836]
[1742659102269,1.01380591,1988.2,1988.1,1.3021]
[1742659102770,1.01380591,1988.2,1988.1,2.30836]
[1742659108673,1.01376591,1988.2,1988.1,2.30836]
[1742659111879,1.01376591,1988.2,1988.1,1.3021]
[1742659112578,2.34386591,1988.2,1988.1,2.30836]
[1742659129396,2.34386591,1988.2,1988.1,1.3021]
[1742659129692,3.85327591,1988.2,1987.9,0.00755591]
[1742659129898,4.21411,1988.0,1987.9,0.00755591]
[1742659130396,6.16851,1988.0,1987.9,0.00755591]
[1742659130592,6.16851,1988.0,1987.9,1.39165591]
[1742659144599,2.96071,1988.0,1987.9,1.39165591]
[1742659145407,6.16851,1988.0,1987.9,1.39165591]
[1742659149317,2.96071,1988.0,1987.9,1.39165591]
[1742659149518,6.16851,1988.0,1987.9,1.39165591]
[1742659151520,2.96071,1988.0,1987.9,1.39165591]
[1742659151815,6.16851,1988.0,1987.9,1.39165591]
[1742659155121,5.51401,1988.0,1987.9,1.39165591]
[1742659171118,5.51401,1988.0,1987.9,2.05625591]
[1742659183934,2.30621,1988.0,1987.9,2.05625591]
[1742659184529,5.51401,1988.0,1987.9,2.05625591]
[1742659185036,2.30621,1988.0,1987.9,2.05625591]
[1742659185334,5.51401,1988.0,1987.9,2.05625591]
[1742659187238,5.51401,1988.0,1987.9,1.39165591]
[1742659187429,6.18931,1988.0,1987.9,1.39165591]
[1742659188730,5.183,1988.0,1987.6,0.635]
[1742659188929,5.183,1988.0,1987.2,4.21447]
[1742659188930,2.51617,1987.7,1987.2,4.21447]
[1742659189237,2.6713,1987.6,1987.3,41.4797]
[1742659189436,1.3484,1987.5,1987.4,1.67217]
[1742659190929,2.35497,1987.5,1987.4,1.67217]
[1742659191529,1.3484,1987.5,1987.4,1.67217]
[1742659191930,1.3484,1987.5,1987.4,2.95057]
[1742659192834,2.35497,1987.5,1987.4,1.944]
[1742659193043,2.35497,1987.5,1987.4,1.2784]
[1742659193341,3.05567,1987.5,1987.4,1.2784]
[1742659195333,3.05567,1987.5,1987.3,0.00755591]
[1742659195334,1.00662,1987.4,1987.3,0.00755591]
[1742659195641,2.38442,1987.4,1987.3,0.00755591]
[1742659196741,2.38442,1987.4,1987.3,1.35975591]
[1742659201433,2.38442,1987.4,1987.3,2.03555591]
[1742659205646,1.00662,1987.4,1987.3,2.03555591]
[1742659206749,1.00662,1987.4,1987.3,1.35975591]
[1742659207049,1.67472,1987.4,1987.3,0.00755591]
[1742659207244,6.39254,1987.4,1987.0,1.2994]
[1742659207453,1.00672,1987.2,1987.1,1.2798]
[1742659207644,1.00687,1986.9,1986.8,0.6525]
[1742659207836,1.00687,1986.9,1986.8,1.299]
[1742659208451,1.00687,1986.9,1986.8,0.6465]
[1742659208651,1.00692,1986.8,1986.7,0.00755591]
[1742659208852,2.30522,1986.8,1986.7,1.28735591]
[1742659210349,1.00692,1986.8,1986.7,5.47731591]
[1742659210542,1.00692,1986.8,1986.7,4.47035591]
[1742659210746,1.0069,1986.9,1986.7,5.47732591]
[1742659211043,1.0069,1986.9,1986.8,2.7108]
[1742659215650,1.0069,1986.9,1986.8,3.71772]
[1742659215854,1.0069,1986.9,1986.8,2.7108]
[1742659216447,1.00687,1986.9,1986.8,3.71768]
[1742659216849,0.00755591,1987.0,1986.8,2.7108]
[1742659217055,1.01437591,1987.0,1986.9,4.4917]
[1742659217452,2.39857591,1987.0,1986.9,4.4917]
[1742659222159,2.39857591,1987.0,1986.9,1.3107]
[1742659222454,1.00692,1986.8,1986.7,0.00755591]
[1742659223058,2.29772,1986.8,1986.7,0.00755591]
[1742659225254,5.50552,1986.8,1986.7,0.00755591]
[1742659228662,7.6796,1986.8,1986.3,0.6359]
[1742659228966,1.00707,1986.5,1986.4,1.3534]
[1742659229454,3.73377,1986.5,1986.4,1.3534]
[1742659233768,3.03687,1986.5,1986.4,1.3534]
[1742659237464,1.00712,1986.4,1986.3,0.00755591]
[1742659237663,2.98682,1986.4,1986.3,1.30905591]
[1742659238366,2.31642,1986.4,1986.3,1.30905591]
[1742659238568,1.3093,1986.4,1986.3,2.31622591]
[1742659238763,2.31642,1986.4,1986.3,1.30905591]
[1742659244764,2.31642,1986.4,1986.3,0.00755591]
[1742659244973,1.00733,1986.0,1985.9,1.3552]
[1742659245273,7.02334,1986.3,1985.9,1.3552]
[1742659245476,1.00733,1986.0,1985.9,1.3552]
[1742659253282,2.41263,1986.0,1985.9,1.3552]
[1742659255073,1.00738,1985.9,1985.8,0.00755591]
[1742659255274,2.41268,1985.9,1985.8,1.28075591]
[1742659255486,3.07528,1985.9,1985.8,1.28075591]
[1742659256883,6.28308,1985.9,1985.8,1.28075591]
[1742659258589,6.28308,1985.9,1985.8,0.6753509]
[1742659261590,5.62048,1985.9,1985.8,1.6827809]
[1742659261796,4.6131,1985.9,1985.8,1.6827809]
[1742659262501,10.18308,1986.1,1986.0,1.00733]
[1742659262700,11.58038,1986.1,1986.0,1.00733]
[1742659263110,1.00733,1986.0,1985.9,2.29355]
[1742659263296,1.3973,1986.0,1985.9,2.29355]
[1742659263903,5.968,1986.1,1985.9,1.9727]
[1742659264102,10.18309,1986.1,1985.9,1.9727]
[1742659264305,10.18309,1986.1,1986.0,1.00733]
[1742659265497,5.968,1986.1,1986.0,1.00733]
[1742659266896,3.2078,1986.3,1986.2,1.00722]
[1742659268006,3.2078,1986.3,1986.2,1.65572]
[1742659268504,4.21497,1986.3,1986.2,1.65572]
[1742659269091,1.00729,1986.1,1986.0,1.0073]
[1742659269292,2.36127,1986.2,1986.0,1.6923]
[1742659269495,2.36127,1986.2,1986.0,0.685]
[1742659269702,3.2078,1986.1,1986.0,1.69229]
[1742659269899,1.354,1986.2,1986.0,0.685]
[1742659270106,1.354,1986.2,1986.0,1.00731]
[1742659270302,3.2078,1986.1,1986.0,1.00729]
[1742659270501,2.36125,1986.2,1986.1,1.00728]
[1742659274104,1.00728,1986.1,1986.0,1.00729]
[1742659274800,1.3265,1986.1,1986.0,2.40519]
[1742659279305,3.2078,1986.3,1986.2,1.00722]
[1742659279907,3.2078,1986.3,1986.2,2.96532]
[1742659281109,1.2907,1986.4,1986.3,1.00717]
[1742659281309,1.2907,1986.4,1986.3,2.30457]
[1742659282610,4.21479,1986.7,1986.3,1.2974]
[1742659282811,1.2967,1986.5,1986.4,2.99062]
[1742659292715,3.2078,1986.6,1986.5,1.00707]
[1742659292913,3.2078,1986.6,1986.5,6.24317]
[1742659294314,1.3746,1986.7,1986.6,1.00702]
[1742659294512,1.3746,1986.7,1986.6,2.40792]
[1742659313932,2.38157,1986.7,1986.6,2.40792]
[1742659314233,1.3746,1986.7,1986.6,2.40792]
[1742659318331,2.38157,1986.7,1986.6,2.40792]
[1742659318528,1.3746,1986.7,1986.6,2.40792]
[1742659319426,2.38157,1986.7,1986.6,2.40792]
[1742659320532,1.3746,1986.7,1986.6,2.40792]
[1742659322829,2.38157,1986.7,1986.6,2.40792]
[1742659323035,1.3746,1986.7,1986.6,2.40792]
[1742659324736,2.38157,1986.7,1986.6,2.40792]
[1742659329538,1.3746,1986.7,1986.6,2.40792]
[1742659330933,2.38157,1986.7,1986.6,2.40792]
[1742659331139,1.3746,1986.7,1986.6,2.40792]
[1742659336949,4.87196,1986.8,1986.6,2.40792]
[1742659336950,3.2078,1986.8,1986.7,1.00697]
[1742659337143,3.2078,1986.8,1986.7,2.96457]
[1742659337541,1.3098,1986.9,1986.8,1.00692]
[1742659337745,1.3098,1986.9,1986.8,2.93972]
[1742659338839,4.5176,1986.9,1986.7,4.18592]
[1742659339045,8.9884,1986.9,1986.4,0.6627]
[1742659339245,4.21481,1986.7,1986.5,1.00706]
[1742659339544,1.9895,1986.6,1986.5,2.37056]
[1742659340042,2.99652,1986.6,1986.5,2.37056]
[1742659342152,1.9895,1986.6,1986.5,2.37056]
[1742659344653,2.99652,1986.6,1986.5,2.37056]
[1742659346553,2.99652,1986.6,1986.5,1.3635]
[1742659346759,1.00707,1986.5,1986.4,2.30888]
[1742659346958,2.30657,1986.5,1986.4,1.64618]
[1742659347154,1.2995,1986.5,1986.4,3.03528]
[1742659348253,2.30657,1986.5,1986.4,3.03528]
[1742659348454,1.2995,1986.5,1986.4,3.03528]
[1742659351755,2.30657,1986.5,1986.4,3.03528]
[1742659352861,1.00714,1986.4,1986.3,1.00715]
[1742659353064,1.277,1986.4,1986.3,2.40115]
[1742659353359,2.28412,1986.4,1986.3,2.40115]
[1742659355858,1.277,1986.4,1986.1,1.00724]
[1742659356055,6.19867,1986.3,1986.2,1.3682]
[1742659356360,1.00728,1986.1,1986.0,1.00729]
[1742659356763,3.00577,1986.2,1986.1,1.00728]
[1742659356963,1.00728,1986.1,1986.0,2.37549]
[1742659357364,4.87846,1986.2,1986.1,1.00728]
[1742659357864,1.00738,1985.9,1985.8,1.64549]
[1742659358058,3.2078,1985.9,1985.8,1.64549]
[1742659358766,4.21518,1985.9,1985.8,1.64549]
[1742659359167,4.21518,1985.9,1985.8,2.97089]
[1742659360164,3.2078,1985.9,1985.8,2.97089]
[1742659360365,0.6649,1986.0,1985.9,1.00738]
[1742659360568,7.3981,1986.1,1986.0,1.00733]
[1742659363972,6.3908,1986.1,1985.9,1.3254]
[1742659364175,1.00733,1986.0,1985.9,2.33275]
[1742659364873,7.3981,1986.1,1986.0,1.00733]
[1742659365071,7.3981,1986.1,1986.0,1.3103]
[1742659365873,1.00733,1986.0,1985.9,1.00734]
[1742659366068,1.00733,1986.0,1985.9,2.31764]
[1742659366672,1.00733,1986.0,1985.9,1.3103]
[1742659368677,6.3908,1986.1,1985.8,0.6381]
[1742659368678,1.00738,1985.9,1985.8,0.6381]
[1742659368869,4.87518,1985.9,1985.8,1.3792]
[1742659371081,1.66738,1985.9,1985.8,1.3792]
[1742659371377,1.00743,1985.8,1985.7,0.00503729]
[1742659371579,1.67603,1985.8,1985.7,0.00503729]
[1742659372079,1.67603,1985.8,1985.7,1.36093729]
[1742659373080,1.67603,1985.8,1985.7,0.00503729]
[1742659374876,2.99063,1985.8,1985.7,0.00503729]
[1742659375591,2.32203,1985.8,1985.7,1.40923729]
[1742659379287,2.32203,1985.8,1985.7,0.00503729]
[1742659381585,2.40304278,1985.8,1985.7,0.00503729]
[1742659382592,4.90304278,1985.8,1985.7,0.00503729]
[1742659383294,5.82924163,1985.8,1985.7,0.00503729]
[1742659383488,5.82924455,1985.8,1985.7,0.00503729]
[1742659384387,6.78717268,1985.8,1985.7,0.00503729]
[1742659386697,6.70615698,1985.8,1985.7,0.00503729]
[1742659386890,6.78717453,1985.8,1985.7,0.00503729]
[1742659388094,5.8292464,1985.8,1985.7,0.00503729]
[1742659388991,6.78743938,1985.8,1985.7,0.00503729]
[1742659389195,6.78743944,1985.8,1985.7,0.00503729]
[1742659390690,4.90304761,1985.8,1985.7,0.00503729]
[1742659391198,2.32203,1985.8,1985.7,0.00503729]
[1742659391392,5.50303,1985.8,1985.7,0.00503729]
[1742659391598,2.32203,1985.8,1985.7,0.00503729]
[1742659391896,4.4956,1985.8,1985.7,1.01251729]
[1742659392093,3.181,1985.8,1985.7,2.41831729]
[1742659393597,5.49703,1985.8,1985.7,2.41831729]
[1742659393898,5.49703,1985.8,1985.7,1.41083729]
[1742659395497,5.49703,1985.8,1985.7,2.41831729]
[1742659395687,3.181,1985.8,1985.7,2.41831729]
[1742659396498,4.18843,1985.8,1985.7,2.41831729]
[1742659396892,5.56173,1985.8,1985.7,1.41083729]
[1742659398694,5.56173,1985.8,1985.7,2.41831729]
[1742659398899,8.76953,1985.8,1985.7,2.41831729]
[1742659399597,6.3888,1985.8,1985.7,2.41831729]
[1742659401601,3.2078,1985.8,1985.7,2.41831729]
[1742659403200,4.21523,1985.8,1985.7,2.41831729]
[1742659403402,4.21523,1985.8,1985.7,1.41083729]
[1742659403799,3.2078,1985.8,1985.7,2.41831729]
[1742659404293,4.5822,1985.8,1985.7,2.41831729]
[1742659404696,5.58963,1985.8,1985.7,2.41831729]
[1742659405302,5.58963,1985.8,1985.7,1.41083729]
[1742659407500,4.5822,1985.8,1985.7,2.41831729]
[1742659409208,5.58963,1985.8,1985.7,2.41831729]
[1742659409505,4.5822,1985.8,1985.7,2.41831729]
[1742659412502,3.2078,1985.8,1985.7,2.41831729]
[1742659412699,1.38175591,1985.9,1985.8,1.00743]
[1742659412901,0.00755591,1985.9,1985.8,2.97923]
[1742659413695,0.00755591,1985.9,1985.8,6.15923]
[1742659414101,3.2078,1986.2,1986.1,1.00728]
[1742659414406,3.2078,1986.2,1986.1,4.18728]
[1742659414603,3.2078,1986.4,1986.2,1.00722]
[1742659414807,3.2078,1986.4,1986.3,1.3597]
[1742659415010,3.2078,1986.4,1986.3,2.36687]
[1742659416600,3.2078,1986.4,1986.3,5.54687]
[1742659417305,3.2078,1986.4,1986.3,6.21997]
[1742659418205,4.5392,1986.4,1986.3,6.21997]
[1742659418399,5.54632,1986.4,1986.3,6.21997]
[1742659418599,4.5392,1986.4,1986.3,6.21997]
[1742659419205,3.2078,1986.4,1986.3,6.21997]
[1742659419808,0.00755591,1986.5,1986.4,1.00712]
[1742659420012,0.00755591,1986.5,1986.4,2.96322]
[1742659420210,1.01462591,1986.5,1986.4,2.96322]
[1742659420507,0.00755591,1986.5,1986.4,2.96322]
[1742659421111,1.33155591,1986.5,1986.4,2.96322]
[1742659433215,0.00755591,1986.5,1986.4,2.96322]
[1742659436227,1.31225591,1986.5,1986.4,2.96322]
[1742659437023,2.31932591,1986.5,1986.4,2.96322]
[1742659437422,1.31225591,1986.5,1986.4,2.96322]
[1742659442628,1.98715591,1986.5,1986.4,2.96322]
[1742659444530,1.98715591,1986.5,1986.4,2.30352]
[1742659449933,2.99422591,1986.5,1986.4,2.30352]
[1742659450131,1.00715,1986.4,1986.3,1.00713]
[1742659450327,1.00715,1986.4,1985.9,43.31834]
[1742659450328,1.00738,1986.0,1985.9,1.00735]
[1742659450629,1.00743,1985.8,1985.7,1.01247729]
[1742659450832,4.21523,1985.8,1985.7,0.00503729]
[1742659451237,6.20333,1985.8,1985.7,0.00503729]
[1742659460026,6.28434376,1985.8,1985.7,0.00503729]
[1742659460928,6.20333,1985.8,1985.7,0.00503729]
[1742659468340,6.20333,1985.8,1985.7,1.40693729]
[1742659471627,6.20333,1985.8,1985.7,0.00503729]
[1742659472336,6.28434296,1985.8,1985.7,0.00503729]
[1742659472641,6.28434365,1985.8,1985.7,0.00503729]
[1742659472843,6.69203337,1985.8,1985.7,0.00503729]
[1742659473643,6.69203671,1985.8,1985.7,0.00503729]
[1742659476336,6.28434699,1985.8,1985.7,0.00503729]
[1742659476734,6.2843439,1985.8,1985.7,0.00503729]
[1742659478442,6.28434353,1985.8,1985.7,0.00503729]
[1742659479337,7.21179118,1985.8,1985.7,0.00503729]
[1742659479643,6.28434353,1985.8,1985.7,0.00503729]
[1742659480337,7.21180417,1985.8,1985.7,0.00503729]
[1742659480737,8.17229143,1985.8,1985.7,0.00503729]
[1742659483732,8.17229143,1985.8,1985.7,1.30873729]
[1742659485238,8.17229143,1985.8,1985.7,0.00503729]
[1742659486938,8.0912779,1985.8,1985.7,1.27633729]
[1742659487142,8.17228774,1985.8,1985.7,1.27633729]
[1742659488552,8.17228779,1985.8,1985.7,1.27633729]
[1742659491853,8.17229216,1985.8,1985.7,0.00503729]
[1742659493648,8.17228561,1985.8,1985.7,0.00503729]
[1742659497053,8.17228561,1985.8,1985.7,1.37043729]
[1742659497751,8.17228561,1985.8,1985.7,0.00503729]
[1742659498354,8.17227929,1985.8,1985.7,0.00503729]
[1742659501258,8.17227918,1985.8,1985.7,0.00503729]
[1742659502859,8.17227776,1985.8,1985.7,0.00503729]
[1742659504765,8.17227032,1985.8,1985.7,0.00503729]
[1742659504954,8.17227032,1985.8,1985.7,1.36163729]
[1742659505964,8.17227032,1985.8,1985.7,0.00503729]
[1742659506964,8.17227032,1985.8,1985.7,1.36903729]
[1742659507966,4.96447032,1985.8,1985.7,1.36903729]
[1742659508166,8.17227032,1985.8,1985.7,1.36903729]
[1742659509267,7.47557032,1985.8,1985.7,1.36903729]
[1742659509462,7.47557032,1985.8,1985.7,2.05893729]
[1742659510555,7.47557032,1985.8,1985.7,0.00503729]
[1742659512272,4.26777032,1985.8,1985.7,0.00503729]
[1742659512472,7.47557032,1985.8,1985.7,0.00503729]
[1742659513265,7.4755612,1985.8,1985.7,0.00503729]
[1742659514167,8.22075438,1985.8,1985.7,0.00503729]
[1742659514469,7.4755612,1985.8,1985.7,0.00503729]
[1742659515770,7.4755612,1985.8,1985.7,0.70573729]
[1742659516273,7.3945779,1985.8,1985.7,0.70573729]
[1742659516474,7.47556173,1985.8,1985.7,0.70573729]
[1742659516673,7.47556173,1985.8,1985.7,0.00503729]
[1742659518171,7.47556164,1985.8,1985.7,0.00503729]
[1742659518573,7.47556164,1985.8,1985.7,1.37763729]
[1742659521378,7.47555236,1985.8,1985.7,1.37763729]
[1742659523077,4.26775236,1985.8,1985.7,1.37763729]
[1742659523276,7.47555236,1985.8,1985.7,1.37763729]
[1742659525079,7.47555236,1985.8,1985.7,0.00503729]
[1742659526282,7.47555859,1985.8,1985.7,0.00503729]
[1742659527073,7.47555859,1985.8,1985.7,1.38343729]
[1742659529788,6.54809795,1985.8,1985.7,1.38343729]
[1742659530687,6.54809795,1985.8,1985.7,0.00503729]
[1742659531087,1.00773,1985.2,1985.1,1.9716]
[1742659531283,7.39653,1985.2,1985.1,0.6834]
[1742659532791,7.39653,1985.2,1985.1,1.3475]
[1742659545290,7.39653,1985.2,1985.1,2.7178]
[1742659550803,4.18873,1985.2,1985.1,2.7178]
[1742659551098,7.39653,1985.2,1985.1,2.7178]
[1742659555799,7.39653,1985.2,1985.1,2.0344]
[1742659556194,7.39653,1985.2,1985.1,1.3703]
[1742659557800,8.43794453,1985.2,1985.1,1.3703]
[1742659558299,8.35694514,1985.2,1985.1,1.3703]
[1742659558988,8.43794473,1985.2,1985.1,1.3703]
[1742659559394,8.35694514,1985.2,1985.1,1.3703]
[1742659559795,1.00778,1985.1,1985.0,0.00755591]
[1742659559995,3.75708,1985.1,1985.0,0.00755591]
[1742659560200,4.68585443,1985.1,1985.0,0.00755591]
[1742659560399,5.64626957,1985.1,1985.0,0.00755591]
[1742659560704,5.00146957,1985.1,1985.0,0.00755591]
[1742659566299,5.00146957,1985.1,1985.0,0.71165591]
[1742659566707,4.04105443,1985.1,1985.0,0.71165591]
[1742659569306,3.11228,1985.1,1985.0,0.71165591]
[1742659569997,2.41088,1985.1,1985.0,0.71165591]
[1742659571107,4.18878,1985.1,1985.0,0.71165591]
[1742659573005,5.55838,1985.1,1985.0,0.71165591]
[1742659575007,6.24798,1985.1,1985.0,0.71165591]
[1742659575309,6.24798,1985.1,1985.0,0.00755591]
[1742659576407,7.25730987,1985.1,1985.0,0.00755591]
[1742659576804,8.21758351,1985.1,1985.0,0.00755591]
[1742659578012,8.21757303,1985.1,1985.0,0.00755591]
[1742659578209,7.20825364,1985.1,1985.0,0.00755591]
[1742659578510,6.24798,1985.1,1985.0,0.00755591]
[1742659579415,7.17603431,1985.1,1985.0,0.00755591]
[1742659580015,6.24798,1985.1,1985.0,0.00755591]
[1742659585016,6.24798,1985.1,1985.0,0.70125591]
[1742659586919,5.55838,1985.1,1985.0,0.70125591]
[1742659588619,5.55838,1985.1,1985.0,0.00755591]
[1742659588822,7.13121247,1985.1,1985.0,0.00755591]
[1742659589219,8.09131244,1985.1,1985.0,0.00755591]
[1742659589820,7.13121247,1985.1,1985.0,0.00755591]
[1742659591222,8.0912631,1985.1,1985.0,0.00755591]
[1742659595021,7.13121247,1985.1,1985.0,0.00755591]
[1742659596122,8.09130993,1985.1,1985.0,0.00755591]
[1742659596514,11.29910993,1985.1,1985.0,0.00755591]
[1742659597016,10.33901247,1985.1,1985.0,0.00755591]
[1742659597315,10.33901247,1985.1,1985.0,1.38935591]
[1742659602626,11.29933729,1985.1,1985.0,1.38935591]
[1742659606130,8.09153729,1985.1,1985.0,1.38935591]
[1742659606331,11.29933729,1985.1,1985.0,1.38935591]
[1742659610737,8.09153729,1985.1,1985.0,1.38935591]
[1742659610932,11.29933729,1985.1,1985.0,1.38935591]
[1742659612532,8.09153729,1985.1,1985.0,1.38935591]
[1742659612927,11.29933729,1985.1,1985.0,1.38935591]
[1742659614135,8.09153729,1985.1,1985.0,1.38935591]
[1742659614331,11.29933729,1985.1,1985.0,1.38935591]
[1742659616128,10.65463729,1985.1,1985.0,2.04705591]
[1742659618036,7.44683729,1985.1,1985.0,2.04705591]
[1742659618255,10.65463729,1985.1,1985.0,2.04705591]
[1742659626444,7.44683729,1985.1,1985.0,2.04705591]
[1742659626743,10.65463729,1985.1,1985.0,2.04705591]
[1742659628245,9.69431247,1985.1,1985.0,2.04705591]
[1742659628446,8.76618,1985.1,1985.0,2.04705591]
[1742659633148,3.2078,1985.1,1985.0,5.55488591]
[1742659633847,1.01524591,1985.3,1985.1,1.00775]
[1742659634049,1.01524591,1985.3,1985.2,1.9235]
[1742659635054,0.00755591,1985.3,1985.2,2.93123]
[1742659636954,1.01523591,1985.3,1985.2,2.93123]
[1742659639858,0.00755591,1985.3,1985.2,2.93123]
[1742659645353,1.00773,1985.2,1985.1,1.00775]
[1742659645553,2.30683,1985.2,1985.1,2.33865]
[1742659645751,2.30683,1985.2,1985.1,1.3309]
[1742659646465,1.00778,1985.1,1985.0,0.00755591]
[1742659646756,5.51468,1985.1,1985.0,0.00755591]
[1742659647351,5.51468,1985.1,1985.0,1.33845591]
[1742659647661,5.51468,1985.1,1985.0,2.34628591]
[1742659647855,4.5069,1985.1,1985.0,2.34628591]
[1742659650966,5.51468,1985.1,1985.0,1.33845591]
[1742659651467,5.51468,1985.1,1985.0,2.34628591]
[1742659651766,4.5069,1985.1,1985.0,2.34628591]
[1742659651970,1.2991,1985.1,1985.0,2.34628591]
[1742659652868,2.30688,1985.1,1985.0,1.33845591]
[1742659653169,5.51468,1985.1,1985.0,1.33845591]
[1742659658172,5.51468,1985.1,1985.0,0.00755591]
[1742659659175,8.69468,1985.1,1985.0,0.00755591]
[1742659664379,5.48688,1985.1,1985.0,0.00755591]
[1742659665074,8.69468,1985.1,1985.0,0.00755591]
[1742659669382,8.69468,1985.1,1985.0,1.31675591]
[1742659674385,5.51468,1985.1,1985.0,1.31675591]
[1742659674589,5.51468,1985.1,1985.0,2.00515591]
[1742659676178,2.30688,1985.1,1985.0,2.00515591]
[1742659676383,5.51468,1985.1,1985.0,2.00515591]
[1742659678080,2.30688,1985.1,1985.0,2.00515591]
[1742659678292,5.51468,1985.1,1985.0,2.00515591]
[1742659682395,5.51468,1985.1,1985.0,1.31675591]
[1742659696124,1.2991,1985.1,1985.0,3.02478591]
[1742659696325,0.00755591,1985.3,1985.2,1.00773]
[1742659696627,3.2078,1985.5,1985.4,1.00763]
[1742659697417,3.2078,1985.5,1985.4,3.09073]
[1742659698827,1.00758,1985.5,1985.4,3.09073]
[1742659699819,1.01512591,1985.6,1985.4,3.09073]
[1742659700024,1.01512591,1985.6,1985.5,1.4006]
[1742659700325,1.01512591,1985.6,1985.5,2.0691]
[1742659700526,1.01512591,1985.6,1985.5,3.07668]
[1742659701729,0.00755591,1985.6,1985.5,3.07668]
[1742659702230,1.01508591,1985.6,1985.5,3.07668]
[1742659702420,1.01508591,1985.6,1985.5,2.0691]
[1742659703026,2.36858591,1985.6,1985.5,2.0691]
[1742659704725,1.36105591,1985.6,1985.5,2.0691]
[1742659705533,2.36858591,1985.6,1985.5,2.0691]
[1742659705725,1.36105591,1985.6,1985.5,3.07668]
[1742659707535,2.36858591,1985.6,1985.5,2.0691]
[1742659708037,2.36858591,1985.6,1985.5,3.07668]
[1742659708829,2.36858591,1985.6,1985.5,2.0691]
[1742659709030,2.36858591,1985.6,1985.5,3.07668]
[1742659709229,2.36858591,1985.6,1985.5,2.0691]
[1742659709641,2.36858591,1985.6,1985.5,3.07668]
[1742659709940,1.36105591,1985.6,1985.5,3.07668]
[1742659710736,0.00755591,1985.6,1985.5,3.07668]
[1742659711237,3.2078,1985.7,1985.6,1.00753]
[1742659711533,3.2078,1985.7,1985.6,2.37133]
[1742659711939,5.52798,1985.9,1985.8,1.00743]
[1742659712540,5.52798,1985.9,1985.8,3.04673]
[1742659713541,1.3128,1985.9,1985.8,3.04673]
[1742659713744,0.00755591,1986.0,1985.9,1.00738]
[1742659713939,0.00755591,1986.0,1985.9,2.30488]
[1742659715445,1.40285591,1986.0,1985.9,2.30488]
[1742659716140,0.00755591,1986.0,1985.9,5.48388]
[1742659722452,3.07615,1986.1,1985.9,6.9765]
[1742659722642,3.2078,1986.5,1986.4,1.00712]
[1742659722849,4.91037,1986.5,1986.4,1.00712]
[1742659723949,6.19227,1986.5,1986.4,1.00712]
[1742659726056,5.1852,1986.5,1986.4,1.00712]
[1742659726444,5.1852,1986.5,1986.4,2.40322]
[1742659728158,1.9774,1986.5,1986.4,2.40322]
[1742659728950,1.2819,1986.5,1986.4,2.40322]
[1742659729956,0.00755591,1986.6,1986.5,1.00707]
[1742659730157,0.00755591,1986.6,1986.5,6.18687]
[1742659733257,1.39005591,1986.6,1986.5,6.18687]
[1742659734055,1.39005591,1986.6,1986.5,5.50147]
[1742659736957,2.39707591,1986.6,1986.5,5.50147]
[1742659737151,1.39005591,1986.6,1986.5,5.50147]
[1742659738252,2.39707591,1986.6,1986.5,5.50147]
[1742659739056,1.39005591,1986.6,1986.5,5.50147]
[1742659739754,2.39707591,1986.6,1986.5,5.50147]
[1742659741959,2.39707591,1986.6,1986.5,4.4944]
[1742659742554,2.39707591,1986.6,1986.3,1.33715591]
[1742659742555,1.00712,1986.4,1986.3,0.00755591]
[1742659742755,4.21492,1986.4,1986.3,0.00755591]
[1742659742957,7.39192,1986.4,1986.3,0.00755591]
[1742659743258,9.40422,1986.4,1986.3,0.00755591]
[1742659745650,1.00728,1986.1,1986.0,1.3384]
[1742659745854,4.21508,1986.1,1986.0,1.3384]
[1742659746263,3.2078,1986.1,1986.0,2.34573]
[1742659746763,4.579,1986.1,1986.0,2.34573]
[1742659748260,5.58628,1986.1,1986.0,2.34573]
[1742659751661,5.58628,1986.1,1986.0,1.3384]
[1742659752159,5.58628,1986.1,1986.0,2.34573]
[1742659752659,4.579,1986.1,1986.0,2.34573]
[1742659752961,4.579,1986.1,1986.0,3.01163]
[1742659754164,5.58628,1986.1,1986.0,3.01163]
[1742659755065,5.58628,1986.1,1986.0,2.0043]
[1742659755265,5.58628,1986.1,1986.0,3.01163]
[1742659758060,5.58628,1986.1,1986.0,2.0043]
[1742659758366,5.58628,1986.1,1986.0,1.3384]
[1742659759164,1.00733,1986.0,1985.9,0.00755591]
[1742659759381,3.70373,1986.0,1985.9,0.00755591]
[1742659767364,6.88173,1986.0,1985.9,0.00755591]
[1742659768771,1.00738,1985.9,1985.8,1.3615]
[1742659769074,5.62118,1985.9,1985.8,1.3615]
[1742659769371,1.00748,1985.7,1985.6,0.646]
[1742659769570,1.00758,1985.5,1985.4,4.88879]
[1742659770174,1.00756,1985.6,1985.5,1.00758]
[1742659770472,1.00756,1985.6,1985.5,1.65358]
[1742659770779,1.406,1985.6,1985.5,2.98908]
[1742659771071,5.48962,1985.7,1985.5,2.98908]
[1742659771272,5.48962,1985.7,1985.6,1.3581]
[1742659776968,6.14962,1985.7,1985.6,1.3581]
[1742659781293,5.48962,1985.7,1985.6,1.3581]
[1742659782895,2.28182,1985.7,1985.6,1.3581]
[1742659783594,5.48962,1985.7,1985.6,1.3581]
[1742659793199,3.2078,1985.7,1985.6,2.36563]
[1742659795699,4.21528,1985.7,1985.6,2.36563]
[1742659796907,3.2078,1985.7,1985.6,2.36563]
[1742659797204,4.21528,1985.7,1985.6,2.36563]
[1742659797908,3.2078,1985.7,1985.6,2.36563]
[1742659798498,4.21528,1985.7,1985.6,2.36563]
[1742659799201,3.2078,1985.7,1985.6,2.36563]
[1742659799909,2.27857,1985.8,1985.6,2.36563]
[1742659800108,2.27857,1985.8,1985.7,1.9958]
[1742659800495,2.27853,1985.8,1985.7,1.9958]
[1742659800700,2.27853,1985.8,1985.7,3.00328]
[1742659800903,2.27853,1985.8,1985.7,1.9958]
[1742659801606,5.48633,1985.8,1985.7,1.9958]
[1742659809010,4.4789,1985.8,1985.7,3.00328]
[1742659809313,5.48633,1985.8,1985.7,3.00328]
[1742659809520,4.4789,1985.8,1985.7,3.00328]